Workbook

Sheet Wydatki
B3: Budżet wydarzenia [Nazwa wydarzenia]
H4: Wydatki
H6: Szacowane | I6: Rzeczywiste
C7: Suma wydatków | H7: =SUM(D14,D22,D28,D35,H14,H22,H27) -> 1,145.00 zł | I7: =SUM(E14,E22,E28,E35,I14,I22,I27) -> 395.00 zł
C9: Miejsce | D9: Szacowane | E9: Rzeczywiste | G9: Poczęstunek | H9: Szacowane | I9: Rzeczywiste
C10: Opłaty za pomieszczenia | D10: 500.00 zł | E10: 250.00 zł | G10: Żywność
C11: Personel na miejscu | D11: 400.00 zł | E11: 50.00 zł | G11: Napoje
C12: Wyposażenie | G12: Obrusy
C13: Stoły i krzesła | G13: Personel i napiwki
C14: Suma | D14: =SUBTOTAL(109,Tabela_1[Szacowane]) -> 900.00 zł | E14: =SUBTOTAL(109,Tabela_1[Rzeczywiste]) -> 300.00 zł | G14: Suma | H14: =SUBTOTAL(109,Tabela_5[Szacowane]) -> 0.00 zł | I14: =SUBTOTAL(109,Tabela_5[Rzeczywiste]) -> 0.00 zł
C16: Dekoracje | D16: Szacowane | E16: Rzeczywiste | G16: Program | H16: Szacowane | I16: Rzeczywiste
C17: Kwiaty | D17: 200.00 zł | E17: 50.00 zł | G17: Artyści
C18: Świece | G18: Prelegenci
C19: Oświetlenie | G19: Podróże
C20: Balony | G20: Hotel
C21: Materiały papiernicze | G21: Inne
C22: Suma | D22: =SUBTOTAL(109,Tabela_2[Szacowane]) -> 200.00 zł | E22: =SUBTOTAL(109,Tabela_2[Rzeczywiste]) -> 50.00 zł | G22: Suma | H22: =SUBTOTAL(109,Tabela_6[Szacowane]) -> 0.00 zł | I22: =SUBTOTAL(109,Tabela_6[Rzeczywiste]) -> 0.00 zł
C24: Promocja | D24: Szacowane | E24: Rzeczywiste | G24: Nagrody | H24: Szacowane | I24: Rzeczywiste
C25: Prace graficzne | D25: 45.00 zł | E25: 45.00 zł | G25: Wstęgi/Odznaki/Trofea
C26: Fotokopie/druk | G26: Prezenty
C27: Opłaty pocztowe | G27: Suma | H27: =SUBTOTAL(109,Tabela_7[Szacowane]) -> 0.00 zł | I27: =SUBTOTAL(109,Tabela_7[Rzeczywiste]) -> 0.00 zł
C28: Suma | D28: =SUBTOTAL(109,Tabela_3[Szacowane]) -> 45.00 zł | E28: =SUBTOTAL(109,Tabela_3[Rzeczywiste]) -> 45.00 zł
C30: Różne | D30: Szacowane | E30: Rzeczywiste
C31: Telefon
C32: Transport
C33: Materiały biurowe
C34: Usługi faksowe
C35: Suma | D35: =SUBTOTAL(109,Tabela_4[Szacowane]) -> 0.00 zł | E35: =SUBTOTAL(109,Tabela_4[Rzeczywiste]) -> 0.00 zł

Sheet Przychód
B3: Budżet wydarzenia [Nazwa wydarzenia]
F4: Przychód
F6: Szacowane | G6: Rzeczywiste
B7: Łączny przychód | F7: =SUM(F14,F21,F28,F36) -> 1,936.00 zł | G7: =SUM(G14,G21,G28,G36) -> 1,831.00 zł
B9: Bilety wstępu
B10: Szacowane | C10: Rzeczywiste | F10: Szacowane | G10: Rzeczywiste
B11: 300 | C11: 278 | D11: Dorośli w cenie | E11: 5.00 zł | F11: =B11*E11 -> 1,500.00 zł | G11: =C11*E11 -> 1,390.00 zł
B12: 197 | C12: 195 | D12: Dzieci w cenie | E12: 2.00 zł | F12: =B12*E12 -> 394.00 zł | G12: =C12*E12 -> 390.00 zł
B13: 42 | C13: 51 | D13: Inne w cenie | E13: 1.00 zł | F13: =B13*E13 -> 42.00 zł | G13: =C13*E13 -> 51.00 zł
F14: =SUM(F11:F13) -> 1,936.00 zł | G14: =SUM(G11:G13) -> 1,831.00 zł
B16: Reklamy w programie
B17: Szacowane | C17: Rzeczywiste | F17: Szacowane | G17: Rzeczywiste
D18: Okładki w cenie | F18: =B18*E18 -> 0.00 zł | G18: =C18*E18 -> 0.00 zł
D19: Połowy stron w cenie | F19: =B19*E19 -> 0.00 zł | G19: =C19*E19 -> 0.00 zł
D20: Ćwiartki stron w cenie | F20: =B20*E20 -> 0.00 zł | G20: =C20*E20 -> 0.00 zł
F21: =SUM(F18:F20) -> 0.00 zł | G21: =SUM(G18:G20) -> 0.00 zł
B23: Wystawcy/sprzedawcy
B24: Szacowane | C24: Rzeczywiste | F24: Szacowane | G24: Rzeczywiste
D25: Duże stoiska w cenie | F25: =B25*E25 -> 0.00 zł | G25: =C25*E25 -> 0.00 zł
D26: Średnie stoiska w cenie | F26: =B26*E26 -> 0.00 zł | G26: =C26*E26 -> 0.00 zł
D27: Małe stoiska w cenie | F27: =B27*E27 -> 0.00 zł | G27: =C27*E27 -> 0.00 zł
F28: =SUM(F25:F27) -> 0.00 zł | G28: =SUM(G25:G27) -> 0.00 zł
B30: Sprzedaż produktów
B31: Szacowane | C31: Rzeczywiste | F31: Szacowane | G31: Rzeczywiste
D32: Produkty w cenie | F32: =B32*E32 -> 0.00 zł | G32: =C32*E32 -> 0.00 zł
D33: Produkty w cenie | F33: =B33*E33 -> 0.00 zł | G33: =C33*E33 -> 0.00 zł
D34: Produkty w cenie | F34: =B34*E34 -> 0.00 zł | G34: =C34*E34 -> 0.00 zł
D35: Produkty w cenie | F35: =B35*E35 -> 0.00 zł | G35: =C35*E35 -> 0.00 zł
F36: =SUM(F32:F35) -> 0.00 zł | G36: =SUM(G32:G35) -> 0.00 zł

Sheet Podsumowanie
B3: Budżet wydarzenia [Nazwa wydarzenia]
F4: Podsumowanie zysków i strat
F6: Szacowane | G6: Rzeczywiste
B7: Łączny przychód | F7: =Przychód!F7 -> 1,936.00 zł | G7: =Przychód!G7 -> 1,831.00 zł
B8: Suma wydatków | F8: =Wydatki!H7 -> 1,145.00 zł | G8: =Wydatki!I7 -> 395.00 zł
B9: Całkowity zysk (lub strata) | F9: =F7-F8 -> 791.00 zł | G9: =G7-G8 -> 1,436.00 zł
